Cogmind - Beta 13 @@@ ROGUE MODE // 2024.04.16 @ 09:59:58 Player: Swaghara Result: Destroyed by D-53 Grenadier with Mini Grenade Launcher Performance ------------- Evolutions (0) 0 Regions Visited (2) 400 Robots Destroyed (12) 60 Value Destroyed (140) 140 Prototype IDs (1) 20 Alien Tech Used (0) 0 Bonus (0) 0 TOTAL SCORE: 620 Bonus ------- None Cogmind --------- Core Integrity 0/250 Matter 300/300 Energy 100/100 System Corruption 7% Temperature Cool (1) Movement Flying (40) Location -10/Mines Parts ------- > --- POWER (1) -------- (None) > --- PROPULSION (2) --- Flight Unit > --- UTILITY (2) ------ (None) > --- WEAPON (2) ------- Heavy Hammer > --- INVENTORY (5) ---- (None) Peak State ------------ > --- POWER ------------ Light Ion Engine > --- PROPULSION ------- (None) > --- UTILITY ---------- Decoy Drone Bay > --- WEAPON ----------- Heavy Hammer > --- INVENTORY -------- (None) [Rating: 17] Favorites ----------- Power Light Ion Engine Engine Light Ion Engine Propulsion Flight Unit Leg Aluminum Leg Flight Unit Flight Unit Utility Decoy Drone Bay Device Decoy Drone Bay Weapon Heavy Hammer Ballistic Gun Light Assault Rifle Launcher Grenade Launcher Impact Weapon Heavy Hammer Build | -11 -10 -10 ------- Run | Yrd Mat Min Slots Evolved . | . . . Power . | . . . Propulsion . | . . . Utility . | . . . Weapon . | . . . Parts Attached 16 | 5 9 2 Power 3 | 1 2 . Engine 3 | 1 2 . Core . | . . . Reactor . | . . . Propulsion 8 | 2 5 1 Treads . | . . . Leg 2 | 2 . . Wheel . | . . . Hover . | . . . Flight 6 | . 5 1 Utility 1 | . . 1 Device 1 | . . 1 Storage . | . . . Processor . | . . . Hackware . | . . . Protection . | . . . Artifact . | . . . Weapon 4 | 2 2 . Energy Gun . | . . . Energy Cannon . | . . . Ballistic Gun 2 | 2 . . Ballistic Cannon . | . . . Launcher 1 | . 1 . Special Weapon . | . . . Impact Weapon 1 | . 1 . Slashing Weapon . | . . . Piercing Weapon . | . . . Special Melee Weapon . | . . . Unidentified Prototypes 1 | . . 1 Parts Lost 8 | . 6 2 Power 2 | . 1 1 Propulsion 4 | . 4 . Utility 1 | . . 1 Weapon 1 | . 1 . Highest Loss Streak 3 | . 3 1 To Critical Strikes . | . . . Average Slot Usage (%) 46 | . 54 39 Engine 6 | . 13 1 Leg 1 | . 3 . Flight 12 | . 15 10 Device 7 | . . 13 Ballistic Gun 3 | . 7 . Launcher 2 | . 5 . Impact Weapon 11 | . 8 14 Naked Turns . | . . . Heaviest Build 20 | 5 9 20 Greatest Support 20 | 20 20 4 Greatest Overweight (x) 6 | . 2 6 Average Overweight (x) 1 | . . 3 Largest Inventory Capacity 5 | 5 5 5 Average Capacity 5 | 5 5 5 Most Carried 2 | 2 2 2 Average Carried . | . . . Final Capacity 5 | 5 5 5 Final Carried . | . . . Class Distribution -------------------- 100% | Mutant Dominant Class ---------------- Mutant | -10/Materials Mutant | -10/Mines Resources | -11 -10 -10 ----------- Run | Yrd Mat Min Matter Collected 428 | 256 117 55 Remotely . | . . . Salvage Created 191 | 40 137 14 Parts 18 | 2 16 . Haulers Intercepted . | . . . Recyclers Shooed . | . . . Parts Field Recycled . | . . . Retrieved Matter . | . . . Parts Self-Destructed . | . . . Prevented . | . . . Kills | -11 -10 -10 ------- Run | Yrd Mat Min Combat Hostiles Destroyed 10 | 1 9 . Melee 3 | . 3 . Guns 5 | 1 4 . AOE 2 | . 2 . Classes Destroyed 4 | 1 2 1 Worker 1 | . 1 . Builder 1 | . . 1 Swarmer 9 | . 9 . Grunt 1 | 1 . . Best Kill Streak 3 | 1 3 1 Combat Bots Only 3 | 1 3 . Max Kills in Single Turn 2 | 1 2 1 Gunslinging . | . . . Exploded 2 | . 2 . Melee 1 | . 1 . Uniques/NPCs Destroyed . | . . . Combat | -11 -10 -10 -------- Run | Yrd Mat Min Hostile Shots Fired 109 | 4 74 31 Missed 29 | 2 18 9 Damage Taken 1022 | 21 619 382 Core 251 | . 175 76 Absorbed by Shields . | . . . Core Remaining (%) 100 | 100 . . Volleys Fired 17 | 3 14 . Largest 2 | 2 2 . Hottest 50 | 40 50 . Shots Fired 28 | 6 22 . Gun 26 | 6 20 . Cannon . | . . . Launcher 2 | . 2 . Special . | . . . Kinetic 26 | 6 20 . Thermal . | . . . Explosive 2 | . 2 . Electromagnetic . | . . . Robot Hit Streak 5 | 3 5 . Robot Miss Streak 4 | 1 4 . Penetration Max . | . . . Secondary Targets . | . . . Shots Hit Robots 20 | 5 13 2 Core Hits 14 | 2 12 . Critical Kills . | . . . Critical Parts Destroyed . | . . . Critical Strikes . | . . . Melee Attacks 24 | . 17 7 Impact 24 | . 17 7 Slashing . | . . . Piercing . | . . . Sneak Attacks 2 | . 1 1 Combat Hostiles . | . . . Follow-up Attacks . | . . . Damage Inflicted 531 | 44 347 140 Guns 126 | 44 82 . Cannons . | . . . Explosions 88 | . 88 . Melee 317 | . 177 140 Ramming . | . . . Kinetic 126 | 44 82 . Thermal . | . . . Explosive 88 | . 88 . Electromagnetic . | . . . Impact 317 | . 177 140 Slashing . | . . . Piercing . | . . . Highest Corruption 7 | . 7 7 Average Corruption 6 | . 6 7 Corruption Purged . | . . . Corruption Blocked . | . . . Effects 27 | . 8 19 Message Errors 9 | . 4 5 Matter Fused 8 | . 2 6 Heat Flow Errors 2 | . 1 1 Energy Discharges 3 | . . 3 Parts Fused 1 | . . 1 Data Loss (minor) 3 | . 1 2 Alerts 1 | . . 1 Overload Shots . | . . . Overflow Damage 131 | . 51 80 Projectiles . | . . . Explosions . | . . . Melee 131 | . 51 80 Knockbacks 1 | . . 1 Impact 1 | . . 1 Kinetic . | . . . Secondary . | . . . Self-Inflicted Damage . | . . . Shots . | . . . Rammed . | . . . Targets Rammed . | . . . Kicked . | . . . Crushed . | . . . Highest Temperature 104 | 6 104 102 Average Temperature 29 | 6 24 54 Received Heat Transfer 84 | 12 72 . Siege Activations . | . . . Robots Corrupted . | . . . Combat Hostiles . | . . . Parts Fried 2 | . . 2 Impact Corruptions 6 | . 2 4 Robots Melted . | . . . Combat Hostiles . | . . . Parts Melted . | . . . Heat Transferred . | . . . Parts Sabotaged . | . . . Parts Stolen . | . . . Parts Stripped . | . . . Power Chain Reactions . | . . . Alert | -11 -10 -10 ------- Run | Yrd Mat Min Peak Influence 310 | 20 310 45 Initial 45 | . 13 45 Average 79 | 2 189 8 Maximum Alert Level 1 | . 1 . Low Security (%) 78 | 100 46 100 Level 1 21 | . 53 . Level 2 . | . . . Level 3 . | . . . Level 4 . | . . . Level 5 . | . . . High Security . | . . . Max Security . | . . . Squads Dispatched 1 | . 1 . Investigation 1 | . 1 . Extermination . | . . . Reinforcement . | . . . Assault . | . . . Garrison . | . . . Intercept . | . . . Searches Triggered . | . . . Construction Impeded . | . . . Haulers Reinforced . | . . . Active Scanning Responses . | . . . Cargo Convoy Interrupts . | . . . Stealth | -11 -10 -10 --------- Run | Yrd Mat Min Distress Signals . | . . . Communications Jammed . | . . . Distress Signals . | . . . Times Spotted 28 | 1 13 14 Peak Tracking Total 9 | 1 4 9 Tactical Retreats 1 | . 1 . Traps | -11 -10 -10 ------- Run | Yrd Mat Min Traps Triggered 1 | . 1 . Indirectly . | . . . Trap Hack Attempts . | . . . Triggered . | . . . Disarmed . | . . . Reprogrammed . | . . . Reused . | . . . Traps Extracted . | . . . Installed . | . . . Triggered . | . . . Machines | -11 -10 -10 ---------- Run | Yrd Mat Min Machines Disabled 1 | . 1 . Max in Single Turn 1 | . 1 . Machines Repaired . | . . . Machines Dismantled . | . . . Machines Sabotaged . | . . . Overloaded Fab Kills . | . . . Hacking | -11 -10 -10 --------- Run | Yrd Mat Min Machines Accessed 4 | . 3 1 Terminals 2 | . 2 . Fabricators . | . . . Repair Stations . | . . . Recycling Units 1 | . 1 . Scanalyzers . | . . . Garrison Access . | . . . Total Hacks 9 | . 8 1 Successful 4 | . 3 1 Failed 5 | . 5 . Catastrophic . | . . . Database Lockouts . | . . . Manual . | . . . Terminals 3 | . 3 . Fabricators . | . . . Repair Stations . | . . . Recycling Units 5 | . 5 . Scanalyzers . | . . . Garrison Access . | . . . Terminal Hacks 3 | . 2 1 Record 1 | . 1 . Open Door 1 | . . 1 Zone Layout 1 | . 1 . Fabricator Hacks . | . . . Repair Station Hacks . | . . . Recycling Unit Hacks 1 | . 1 . Recycle Component 1 | . 1 . Scanalyzer . | . . . Garrison Access Hacks . | . . . Unauthorized Hacks . | . . . Terminals . | . . . Fabricators . | . . . Repair Stations . | . . . Recycling Units . | . . . Scanalyzers . | . . . Garrison Access . | . . . Data Cores Recovered . | . . . Used . | . . . Hacking Detections 3 | . 3 . Full Trace Events 1 | . 1 . Feedback Events . | . . . Feedback Blocked . | . . . Robot Schematics Acquired . | . . . Robots Built . | . . . Authchips . | . . . Time . | . . . Total Robot Build Rating . | . . . Part Schematics Acquired . | . . . Parts Built . | . . . Authchips . | . . . Time . | . . . Total Part Build Rating . | . . . Parts Repaired . | . . . Time . | . . . Parts Recycled 1 | . 1 . Recycled Matter . | . . . Retrieved Matter . | . . . Retrieved Components . | . . . Parts Scanalyzed . | . . . Part Schematics Acquired . | . . . Parts Damaged . | . . . Bothacking | -11 -10 -10 ------------ Run | Yrd Mat Min Used RIF Installer . | . . . Robots Hacked . | . . . Non-combat . | . . . Combat . | . . . Robot Hacks Applied . | . . . Relay Couplers Released . | . . . Fabnet Peak Effective % . | . . . Robots Rewired . | . . . Allies Hacked . | . . . Hacks Repelled . | . . . Allies | -11 -10 -10 -------- Run | Yrd Mat Min Total Allies . | . . . Largest Group . | . . . Highest-Rated Group . | . . . Highest-Rated Ally . | . . . Total Orders . | . . . Ally Attacks . | . . . Total Damage . | . . . Kills . | . . . Allies Corrupted . | . . . Allies Melted . | . . . Intel | -11 -10 -10 ------- Run | Yrd Mat Min Robot Analysis Total . | . . . Derelict Logs Recovered 1 | . . 1 Drone Launches 16 | . . 16 Drone Recoveries . | . . . Exploration | -11 -10 -10 ------------- Run | Yrd Mat Min Turns Passed 1251 | 127 494 630 Spaces Moved 801 | 107 501 193 Core 144 | 31 51 62 Treads . | . . . Legs 101 | 76 25 . Wheels . | . . . Hover . | . . . Flight 556 | . 425 131 Fastest Speed 37 | 50 37 40 Average Speed 136 | 99 75 313 Slowest Speed 360 | 120 200 360 Overloaded Moves . | . . . Propulsion Burnouts . | . . . Robots Hopped 2 | . 2 . Cave-ins Triggered 2 | . 2 . Exploration Rate (%) 37 | 9 48 55 Regions Visited 2 Branch Regions 1 Pre-discovered Areas . | . . . Known Exits Taken . | . . . Unknown Exits Taken 2 | 1 1 . Scrap Searched . | . . . Spaces Dug 8 | . 8 . Terrain Destroyed 21 | . 21 . Melee 8 | . 8 . Projectile . | . . . AOE 13 | . 13 . Terrain Rammed . | . . . Walls Destroyed . | . . . Machines Disabled . | . . . Actions | -11 -10 -10 --------- Run | Yrd Mat Min Total 893 | 123 565 205 Wait 13 | . 12 1 Move 795 | 106 496 193 Hop 2 | . 2 . Pick Up 18 | 7 9 2 Fast Attach . | . . . Attach 11 | 5 4 2 Detach 1 | . 1 . Swap 5 | . 5 . Drop 7 | 2 5 . Fire 17 | 3 14 . Melee 24 | . 17 7 Ram . | . . . Kick . | . . . Crush . | . . . Escape Stasis . | . . . Rewire . | . . . Trap . | . . . Miscellaneous . | . . . Route ------- -11/Scrapyard -10/Materials (discovered 2 exits: [*Mat] / *Min) -10/Mines (discovered 1 exit: [*Mat]) History --------- Turn | Location | Event 2 | -11/Scrapyard | Met Revision 17 94 | -11/Scrapyard | Discovered new exit (range 8) 128 | -11/Scrapyard | Entered Materials 313 | -10/Materials | Build established: Mutant 369 | -10/Materials | Lost 3 parts (1p2n) 414 | -10/Materials | Crushed by falling debris 415 | -10/Materials | Crushed by falling debris 447 | -10/Materials | Discovered new exit (range 12) 532 | -10/Materials | Core integrity fell below 50% 613 | -10/Materials | Discovered new exit (range 7) 622 | -10/Materials | Entered Mines 632 | -10/Mines | Found the Drone Emporium 640 | -10/Mines | Found Prototype Device 641 | -10/Mines | Identified Decoy Drone Bay 713 | -10/Mines | Discovered new exit (range 9) 780 | -10/Mines | Lost 3 allies 908 | -10/Mines | Learned 8 Materials zone layouts 1189 | -10/Mines | Assembled infested the area 1194 | -10/Mines | Assisted by a Guerilla fighting off Assembled 1250 | -10/Mines | Core integrity fell below 20% 1252 | -10/Mines | Destroyed by D-53 Grenadier with Mini Grenade Launcher Last Messages --------------- effect. Wheel fried. Welding Torch fried. U-05 Engineer destroyed. Acquired 5 matter. ALERT: Infestation in the mines, dispatching Demolisher response squad. A derelict emerges from the shadows: "You need to get out of here! I've been tracking a group of Assembled to figure out where they're coming from, and they're closing on this area, come on!" WUZRCLW8HRC4 VW &T,OUGS Decoy Drone Bay destroyed. System corrupted: Component data lost. The unstable cave ceiling collapses. as-97858 destroyed. as-05579 destroyed. as-19978 destroyed. [Achievement: First Step to Greatness] Map ----- +----------------------------------------------------+ | | | | | | | | | | | | | | | | | | | | | | | | | ?????????????????????????????????????????????????? | | ?????????????????????????????????????????????????? | | ???????????###??????????####?????????????????????? | | ??????????## ##????????## ###???????????????????? | | ?????????## #????????# <#####???????????????? | | ??????#### ########## ##??????????????? | | #### %[ #??????????????? | | % % ##?????????????? | | ############a ###???????????? | | ## ## % ## #?????#%! % #???????????? | | ???###?### #?????# % #???????????? | | ?????????## % ##????## #???????????? | | ??????????## ##?????# # ##?????#????? | | ???????????#####??????# @ # #???? ##???? | | ?????????????????????# # #??? ##??? | | ????????????????????# % ## #?? #??? | | ????????????????????# ### #?# #??? | | ????????????????????# =[##?##### #### ????? | | ????????????????????####=%#??????? ## #?????? | | ???????????????????????#!=#?????## # #??????? | | ???????????????????????# a#????## # #???????? | | ???????????????????????# a#????# #????????? | | ???????????????????????# ?????# """% #????????? | | ???????????????????????# ????## """ #????????? | | ???????????????????????# ????# """ #????????? | | ???????????????????????# ????# ##???# ???? | | ???????????????????????# ????## ##???? ##? | | ???????????????????????? ?????##### #???## #? | | ???????????????????????? ?????????# #???# #? | | ???????????????????????????????????# #???# #? | | ???????????????????????????????????# #??## #? | | ???????????????????????????????????# #??# ## | | ???????????????????????????????????# #??# """ | | ???????????????????????????????????# #??# """ | | ??????????????????????????????##??## #?## """ | | ?????????????????????????????## ## ### | | ?????????????????????????????# ## | | ?????????????????????????????# | +----------------------------------------------------+ Best States ------------- Heat Dissipation 25 Energy Generation 10 Energy Capacity 125 Matter Stores 300 Matter Capacity 300 Sight Range 16 Terrain Scan Density 10 Evasion (%) 62 Item Schematics ----------------- None Robot Schematics ------------------ None Fabricated ------------ Nothing Alien Tech Used ----------------- None Achievements -------------- First Step to Greatness Release The Drones! Risk Taker Unlikely Earthworm Challenges ------------ None Game ------ Seed CooledArcAutogun Manual? 0 Play Time 00:29:26 Cumulative 0.4 hours Start 2024.04.16 @ 08:04:08 End 2024.04.16 @ 09:59:58 Sessions 1 Manual Loads 0 Difficulty Rogue Special Mode None Game No. 1 Rogue 1 Adventurer 0 Explorer 0 Win Type - Total 0 Types 0/0/0/0/0/0/0/0/0 Lore% 0 Gallery% 0 Achievement% 1 Wizard Run 0 Options --------- Layout 1 ASCII 0 Keyboard 0 Movement Arrows Keybinds 0 Fullscreen 0 Font 28/SmallcapsGlow Map View 50x35 Zoom Use 0% Tactical HUD 0 Map Filters NONE Filters NONE Steam 0 RUN: c8d07140-0db9-4773-bd35-7bcb020f64ce